[Event "Championnat d'Europe Rapide"]
[Date "2024.12.07"]
[White "Korobov, Anton"]
[Black "Beerdsen, Thomas"]
[WhiteElo "2629"]
[BlackElo "2502"]
[Round "5.10"]
[Result "1-0"]
[TimeControl "900+10"]

1. c4 {[%emt 00:30:17] [%clk 00:15:18]} e5 {[%emt 00:00:02] [%clk 00:15:18]} 2.
d3 {[%emt 00:00:02] [%clk 00:15:26]} Nf6 {[%emt 00:00:04] [%clk 00:15:25]} 3.
Nf3 {[%clk 00:15:35]} Nc6 {[%emt 00:00:04] [%clk 00:15:32]} 4. a3 {[%emt
00:00:04] [%clk 00:15:43]} d5 {[%emt 00:00:05] [%clk 00:15:35]} 5. cxd5 {[%emt
00:00:02] [%clk 00:15:51]} Nxd5 {[%emt 00:00:02] [%clk 00:15:43]} 6. e3 {[%emt
00:00:01] [%clk 00:16:00]} g5 {[%emt 00:00:26] [%clk 00:15:27]} 7. b4 {[%emt
00:00:09] [%clk 00:16:01]} Bg7 {[%emt 00:00:29] [%clk 00:15:08]} 8. Bb2 {[%emt
00:00:02] [%clk 00:16:09]} g4 {[%emt 00:00:16] [%clk 00:15:02]} 9. Nfd2 {[%emt
00:00:04] [%clk 00:16:15]} h5 {[%emt 00:00:18] [%clk 00:14:54]} 10. Be2 {[%emt
00:00:17] [%clk 00:16:08]} Be6 {[%emt 00:00:29] [%clk 00:14:34]} 11. O-O {[%emt
00:00:11] [%clk 00:16:07]} Qg5 {[%emt 00:01:13] [%clk 00:13:32]} 12. Nc3 {[%emt
00:00:24] [%clk 00:15:53]} Nxc3 {[%emt 00:01:02] [%clk 00:12:40]} 13. Bxc3
{[%emt 00:00:01] [%clk 00:16:01]} O-O-O {[%emt 00:00:03] [%clk 00:12:47]} 14.
Ne4 {[%emt 00:00:53] [%clk 00:15:18]} Qg6 {[%emt 00:00:10] [%clk 00:12:47]} 15.
Nc5 {[%emt 00:00:48] [%clk 00:14:41]} Kb8 {[%emt 00:00:07] [%clk 00:12:50]} 16.
Rb1 {[%emt 00:02:18] [%clk 00:12:33]} Ne7 {[%emt 00:01:11] [%clk 00:11:48]} 17.
b5 {[%emt 00:02:10] [%clk 00:10:34]} Nd5 {[%emt 00:00:06] [%clk 00:11:52]} 18.
Bd2 {[%emt 00:00:08] [%clk 00:10:34]} Bc8 {[%emt 00:00:33] [%clk 00:11:30]} 19.
Qc2 {[%emt 00:00:06] [%clk 00:10:38]} f5 {[%emt 00:02:44] [%clk 00:08:57]} 20.
Rfc1 {[%emt 00:00:02] [%clk 00:10:45]} Bf8 {[%emt 00:01:29] [%clk 00:07:38]} 21.
a4 {[%emt 00:03:01] [%clk 00:07:55]} Bd6 {[%emt 00:00:25] [%clk 00:07:24]} 22.
a5 {[%emt 00:00:17] [%clk 00:07:48]} g3 {[%emt 00:00:36] [%clk 00:06:57]} 23.
fxg3 {[%emt 00:00:34] [%clk 00:07:24]} h4 {[%emt 00:00:23] [%clk 00:06:44]} 24.
Bf3 {[%emt 00:00:05] [%clk 00:07:29]} e4 {[%emt 00:00:33] [%clk 00:06:20]} 25.
dxe4 {[%emt 00:00:07] [%clk 00:07:33]} fxe4 {[%emt 00:01:20] [%clk 00:05:10]}
26. Qxe4 {[%emt 00:01:32] [%clk 00:06:12]} Qxe4 {[%emt 00:00:26] [%clk
00:04:53]} 27. Nxe4 {[%emt 00:00:02] [%clk 00:06:20]} hxg3 {[%emt 00:00:06]
[%clk 00:04:57]} 28. hxg3 {[%emt 00:00:01] [%clk 00:06:29]} Ba3 {[%emt 00:00:15]
[%clk 00:04:53]} 29. Rc4 {[%emt 00:00:05] [%clk 00:06:33]} Bf5 {[%emt 00:00:11]
[%clk 00:04:52]} 30. Rb3 {[%emt 00:00:18] [%clk 00:06:24]} Bf8 {[%emt 00:00:10]
[%clk 00:04:52]} 31. Ng5 {[%emt 00:01:21] [%clk 00:05:14]} Bg6 {[%emt 00:01:11]
[%clk 00:03:50]} 32. e4 {[%emt 00:00:23] [%clk 00:05:02]} Nf6 {[%emt 00:00:48]
[%clk 00:03:12]} 33. Bf4 {[%emt 00:00:03] [%clk 00:05:08]} Ne8 {[%emt 00:00:31]
[%clk 00:02:51]} 34. b6 {[%emt 00:00:17] [%clk 00:05:02]} 1-0

[Site "Europe Echecs"]

[Event "Championnat d'Europe Rapide"]
[Date "2024.12.07"]
[White "Livaic, Leon"]
[Black "Saric, Ante"]
[WhiteElo "2560"]
[BlackElo "2482"]
[Round "5.11"]
[Result "0-1"]
[TimeControl "900+10"]

1. d4 {[%emt 00:00:03] [%clk 00:15:16]} Nf6 {[%emt 00:00:04] [%clk 00:15:19]} 2.
c4 {[%clk 00:15:24]} e6 {[%emt 00:00:01] [%clk 00:15:28]} 3. g3 {[%emt 00:00:07]
[%clk 00:15:28]} d5 {[%emt 00:00:05] [%clk 00:15:32]} 4. Bg2 {[%emt 00:00:02]
[%clk 00:15:36]} Bb4+ {[%emt 00:00:13] [%clk 00:15:28]} 5. Nd2 {[%emt 00:00:03]
[%clk 00:15:43]} O-O {[%emt 00:00:14] [%clk 00:15:24]} 6. Ngf3 {[%emt 00:00:02]
[%clk 00:15:51]} b6 {[%emt 00:00:16] [%clk 00:15:18]} 7. O-O {[%emt 00:00:06]
[%clk 00:15:55]} Bb7 {[%emt 00:00:01] [%clk 00:15:27]} 8. a3 {[%emt 00:00:08]
[%clk 00:15:57]} Be7 {[%emt 00:00:12] [%clk 00:15:25]} 9. cxd5 {[%emt 00:00:05]
[%clk 00:16:02]} Bxd5 {[%emt 00:00:16] [%clk 00:15:19]} 10. Qc2 {[%emt 00:00:15]
[%clk 00:15:57]} c5 {[%emt 00:00:03] [%clk 00:15:25]} 11. dxc5 {[%emt 00:00:34]
[%clk 00:15:34]} bxc5 {[%emt 00:00:05] [%clk 00:15:29]} 12. Rd1 {[%emt 00:00:56]
[%clk 00:14:48]} Nbd7 {[%emt 00:00:19] [%clk 00:15:21]} 13. e4 {[%emt 00:01:43]
[%clk 00:13:15]} Bb7 {[%emt 00:00:20] [%clk 00:15:11]} 14. b3 {[%emt 00:00:40]
[%clk 00:12:45]} Qc7 {[%emt 00:01:44] [%clk 00:13:37]} 15. Bb2 {[%emt 00:00:40]
[%clk 00:12:15]} Rad8 {[%emt 00:00:07] [%clk 00:13:41]} 16. Re1 {[%emt 00:01:13]
[%clk 00:11:11]} h6 {[%emt 00:02:45] [%clk 00:11:06]} 17. Bc3 {[%emt 00:01:17]
[%clk 00:10:04]} Qb8 {[%emt 00:00:58] [%clk 00:10:18]} 18. Nc4 {[%emt 00:00:09]
[%clk 00:10:05]} Nb6 {[%emt 00:00:46] [%clk 00:09:43]} 19. Nfe5 {[%emt 00:01:03]
[%clk 00:09:12]} Nxc4 {[%emt 00:03:07] [%clk 00:06:46]} 20. Nxc4 {[%emt
00:00:02] [%clk 00:09:20]} Ba6 {[%emt 00:00:46] [%clk 00:06:10]} 21. Be5 {[%emt
00:02:15] [%clk 00:07:14]} Qc8 {[%emt 00:00:16] [%clk 00:06:05]} 22. Rad1 {[%emt
00:01:20] [%clk 00:06:03]} Bxc4 {[%emt 00:00:52] [%clk 00:05:24]} 23. Qxc4
{[%emt 00:00:20] [%clk 00:05:52]} Nd7 {[%emt 00:00:02] [%clk 00:05:32]} 24. Bb2
{[%emt 00:01:21] [%clk 00:04:41]} Bf6 {[%emt 00:00:17] [%clk 00:05:26]} 25. Bxf6
{[%emt 00:00:52] [%clk 00:03:59]} gxf6 {[%emt 00:00:43] [%clk 00:04:53]} 26. Rc1
{[%emt 00:00:33] [%clk 00:03:36]} Ne5 {[%emt 00:00:04] [%clk 00:04:59]} 27. Qe2
{[%emt 00:00:15] [%clk 00:03:31]} Nd3 {[%emt 00:00:04] [%clk 00:05:05]} 28. Qg4+
{[%emt 00:00:05] [%clk 00:03:36]} Kh7 {[%emt 00:00:25] [%clk 00:04:50]} 29. Qh4
{[%emt 00:00:23] [%clk 00:03:23]} Rd4 {[%emt 00:00:57] [%clk 00:04:03]} 30. Qxf6
{[%emt 00:00:27] [%clk 00:03:06]} Qd8 {[%emt 00:00:04] [%clk 00:04:09]} 31. Qf3
{[%emt 00:00:20] [%clk 00:02:56]} Nxc1 {[%emt 00:01:30] [%clk 00:02:50]} 32.
Rxc1 {[%emt 00:00:01] [%clk 00:03:04]} Rd3 {[%clk 00:02:59]} 33. Qe2 {[%emt
00:00:46] [%clk 00:02:28]} Rd2 {[%emt 00:00:30] [%clk 00:02:40]} 34. Qa6 {[%emt
00:01:14] [%clk 00:01:24]} Qd4 {[%emt 00:00:33] [%clk 00:02:17]} 35. Rf1 {[%emt
00:00:01] [%clk 00:01:33]} c4 {[%emt 00:00:02] [%clk 00:02:26]} 36. bxc4 {[%emt
00:00:14] [%clk 00:01:28]} Rb8 {[%emt 00:00:01] [%clk 00:02:35]} 37. e5 {[%emt
00:00:56] [%clk 00:00:41]} Rb1 {[%emt 00:00:21] [%clk 00:02:23]} 0-1

[Site "Europe Echecs"]

[Event "Championnat d'Europe Rapide"]
[Date "2024.12.07"]
[White "Horvath, Dominik"]
[Black "Kadric, Denis"]
[WhiteElo "2542"]
[BlackElo "2544"]
[Round "5.12"]
[Result "1-0"]
[TimeControl "900+10"]

1. g3 {[%emt 00:00:03] [%clk 00:15:17]} d6 {[%emt 00:00:05] [%clk 00:15:16]} 2.
Bg2 {[%emt 00:00:08] [%clk 00:15:19]} e5 {[%clk 00:15:25]} 3. d4 {[%emt
00:00:03] [%clk 00:15:26]} Nd7 {[%emt 00:00:14] [%clk 00:15:22]} 4. e4 {[%emt
00:00:14] [%clk 00:15:22]} Ngf6 {[%emt 00:00:31] [%clk 00:15:01]} 5. Ne2 {[%emt
00:00:04] [%clk 00:15:28]} g6 {[%emt 00:00:02] [%clk 00:15:09]} 6. O-O {[%emt
00:00:08] [%clk 00:15:30]} Bg7 {[%clk 00:15:18]} 7. Nbc3 {[%emt 00:00:16] [%clk
00:15:24]} O-O {[%emt 00:00:04] [%clk 00:15:25]} 8. h3 {[%emt 00:00:03] [%clk
00:15:31]} c6 {[%emt 00:00:17] [%clk 00:15:18]} 9. a4 {[%emt 00:00:01] [%clk
00:15:39]} b6 {[%emt 00:00:55] [%clk 00:14:34]} 10. Be3 {[%emt 00:01:51] [%clk
00:13:57]} a6 {[%emt 00:00:25] [%clk 00:14:21]} 11. f4 {[%emt 00:00:52] [%clk
00:13:14]} Qc7 {[%emt 00:00:28] [%clk 00:14:03]} 12. g4 {[%emt 00:00:31] [%clk
00:12:53]} exd4 {[%emt 00:01:51] [%clk 00:12:22]} 13. Bxd4 {[%emt 00:00:13]
[%clk 00:12:50]} Bb7 {[%emt 00:00:06] [%clk 00:12:26]} 14. g5 {[%emt 00:00:33]
[%clk 00:12:27]} Ne8 {[%emt 00:00:02] [%clk 00:12:34]} 15. f5 {[%emt 00:00:58]
[%clk 00:11:39]} Be5 {[%emt 00:00:03] [%clk 00:12:42]} 16. Nf4 {[%emt 00:00:53]
[%clk 00:10:55]} b5 {[%emt 00:02:37] [%clk 00:10:15]} 17. Be3 {[%emt 00:01:18]
[%clk 00:09:46]} Nb6 {[%emt 00:02:29] [%clk 00:07:56]} 18. Qd3 {[%emt 00:02:09]
[%clk 00:07:47]} b4 {[%emt 00:00:50] [%clk 00:07:17]} 19. a5 {[%emt 00:00:02]
[%clk 00:07:54]} Nd7 {[%emt 00:00:01] [%clk 00:07:27]} 20. Na4 {[%emt 00:00:33]
[%clk 00:07:31]} c5 {[%emt 00:01:00] [%clk 00:06:37]} 21. Nd5 {[%emt 00:00:02]
[%clk 00:07:38]} Qd8 {[%emt 00:01:10] [%clk 00:05:38]} 22. c3 {[%emt 00:01:53]
[%clk 00:05:55]} Bxd5 {[%emt 00:00:22] [%clk 00:05:26]} 23. Qxd5 {[%emt
00:00:16] [%clk 00:05:49]} Nc7 {[%clk 00:05:35]} 24. Qc4 {[%emt 00:00:20] [%clk
00:05:38]} bxc3 {[%emt 00:00:07] [%clk 00:05:39]} 25. bxc3 {[%emt 00:00:08]
[%clk 00:05:39]} Nb5 {[%emt 00:00:41] [%clk 00:05:09]} 26. h4 {[%emt 00:00:27]
[%clk 00:05:21]} Bg3 {[%emt 00:01:07] [%clk 00:04:13]} 27. Nb6 {[%emt 00:01:35]
[%clk 00:03:56]} Ne5 {[%emt 00:00:42] [%clk 00:03:41]} 28. Qb3 {[%emt 00:00:33]
[%clk 00:03:32]} Rb8 {[%emt 00:00:44] [%clk 00:03:07]} 29. c4 {[%emt 00:00:02]
[%clk 00:03:41]} Na7 {[%emt 00:00:43] [%clk 00:02:34]} 30. h5 {[%emt 00:00:07]
[%clk 00:03:43]} Bh4 {[%emt 00:00:10] [%clk 00:02:35]} 31. hxg6 {[%emt 00:00:22]
[%clk 00:03:31]} Bxg5 {[%emt 00:01:11] [%clk 00:01:33]} 32. gxh7+ {[%emt
00:02:01] [%clk 00:01:41]} Kh8 {[%clk 00:01:43]} 33. f6 {[%emt 00:00:09] [%clk
00:01:42]} Bxf6 {[%emt 00:00:17] [%clk 00:01:36]} 34. Rad1 {[%emt 00:00:07]
[%clk 00:01:44]} Ng4 {[%emt 00:00:33] [%clk 00:01:14]} 35. Bf4 {[%emt 00:00:11]
[%clk 00:01:43]} Nc6 {[%emt 00:00:32] [%clk 00:00:52]} 36. Qg3 {[%emt 00:00:11]
[%clk 00:01:42]} Nge5 {[%emt 00:00:10] [%clk 00:00:51]} 37. Bh6 {[%emt 00:00:15]
[%clk 00:01:37]} Re8 {[%emt 00:00:44] [%clk 00:00:18]} 38. Nd5 {[%clk 00:01:46]}
Kxh7 {[%emt 00:00:11] [%clk 00:00:17]} 39. Rxf6 {[%emt 00:00:25] [%clk
00:01:31]} Rg8 {[%emt 00:00:04] [%clk 00:00:23]} 40. Qh3 {[%emt 00:00:01] [%clk
00:01:40]} 1-0

[Site "Europe Echecs"]

[Event "Championnat d'Europe Rapide"]
[Date "2024.12.07"]
[White "Cvitan, Ognjen"]
[Black "Subelj, Jan"]
[WhiteElo "2413"]
[BlackElo "2526"]
[Round "5.13"]
[Result "1-0"]
[TimeControl "900+10"]

1. d4 {[%emt 00:00:08] [%clk 00:15:11]} Nf6 {[%emt 00:00:02] [%clk 00:15:18]} 2.
c4 {[%emt 00:00:06] [%clk 00:15:15]} e6 {[%emt 00:00:09] [%clk 00:15:20]} 3. Nc3
{[%emt 00:00:08] [%clk 00:15:16]} Bb4 {[%emt 00:00:03] [%clk 00:15:27]} 4. e3
{[%emt 00:00:04] [%clk 00:15:23]} O-O {[%emt 00:00:03] [%clk 00:15:33]} 5. Bd3
{[%emt 00:00:03] [%clk 00:15:30]} Re8 {[%emt 00:00:16] [%clk 00:15:28]} 6. Bd2
{[%emt 00:01:34] [%clk 00:14:05]} Bf8 {[%emt 00:00:28] [%clk 00:15:10]} 7. Nf3
{[%emt 00:00:17] [%clk 00:13:59]} d6 {[%emt 00:00:06] [%clk 00:15:14]} 8. Qc2
{[%emt 00:00:43] [%clk 00:13:25]} e5 {[%emt 00:00:09] [%clk 00:15:15]} 9. O-O
{[%emt 00:00:15] [%clk 00:13:20]} Bg4 {[%emt 00:00:23] [%clk 00:15:02]} 10. dxe5
{[%emt 00:00:48] [%clk 00:12:43]} dxe5 {[%emt 00:00:03] [%clk 00:15:09]} 11. Ng5
{[%emt 00:00:10] [%clk 00:12:42]} h6 {[%emt 00:00:09] [%clk 00:15:10]} 12. Bh7+
{[%emt 00:00:06] [%clk 00:12:46]} 1-0

[Site "Europe Echecs"]

[Event "Championnat d'Europe Rapide"]
[Date "2024.12.07"]
[White "Dobrikov, Marco"]
[Black "Boyer, Mahel"]
[WhiteElo "2407"]
[BlackElo "2526"]
[Round "5.14"]
[Result "0-1"]
[TimeControl "900+10"]

1. d4 {[%emt 00:00:06] [%clk 00:15:14]} g6 {[%emt 00:00:13] [%clk 00:15:06]} 2.
c4 {[%emt 00:00:03] [%clk 00:15:22]} Bg7 {[%emt 00:00:01] [%clk 00:15:15]} 3.
Nc3 {[%emt 00:00:03] [%clk 00:15:30]} d6 {[%emt 00:00:01] [%clk 00:15:23]} 4.
Nf3 {[%emt 00:00:16] [%clk 00:15:24]} c5 {[%emt 00:00:19] [%clk 00:15:14]} 5.
dxc5 {[%emt 00:00:26] [%clk 00:15:08]} dxc5 {[%emt 00:00:02] [%clk 00:15:21]} 6.
Qxd8+ {[%emt 00:00:03] [%clk 00:15:16]} Kxd8 {[%emt 00:00:02] [%clk 00:15:29]}
7. Be3 {[%emt 00:01:05] [%clk 00:14:21]} Bxc3+ {[%emt 00:00:09] [%clk 00:15:30]}
8. bxc3 {[%clk 00:14:30]} b6 {[%emt 00:00:15] [%clk 00:15:26]} 9. g3 {[%clk
00:14:39]} Bb7 {[%emt 00:00:15] [%clk 00:15:20]} 10. Bg2 {[%clk 00:14:48]} Nd7
{[%emt 00:01:12] [%clk 00:14:20]} 11. O-O {[%emt 00:00:16] [%clk 00:14:42]} Ke8
{[%emt 00:00:23] [%clk 00:14:07]} 12. a4 {[%emt 00:00:14] [%clk 00:14:39]} a5
{[%emt 00:00:11] [%clk 00:14:06]} 13. Rab1 {[%emt 00:00:05] [%clk 00:14:44]}
Ngf6 {[%emt 00:00:14] [%clk 00:14:02]} 14. Bf4 {[%emt 00:00:24] [%clk 00:14:29]}
Rc8 {[%emt 00:01:19] [%clk 00:12:53]} 15. Rb2 {[%emt 00:00:25] [%clk 00:14:14]}
Bc6 {[%emt 00:00:15] [%clk 00:12:48]} 16. Ra1 {[%emt 00:00:07] [%clk 00:14:18]}
Ne4 {[%emt 00:00:55] [%clk 00:12:02]} 17. Ne5 {[%emt 00:00:15] [%clk 00:14:13]}
Nxe5 {[%emt 00:00:06] [%clk 00:12:06]} 18. Bxe5 {[%emt 00:00:01] [%clk
00:14:22]} f6 {[%emt 00:00:02] [%clk 00:12:15]} 19. Bf4 {[%emt 00:02:19] [%clk
00:12:13]} Nxc3 {[%emt 00:00:25] [%clk 00:12:00]} 20. Bxc6+ {[%emt 00:00:02]
[%clk 00:12:21]} Rxc6 {[%emt 00:00:03] [%clk 00:12:06]} 21. f3 {[%emt 00:00:01]
[%clk 00:12:30]} g5 {[%emt 00:00:57] [%clk 00:11:19]} 22. Be3 {[%emt 00:00:24]
[%clk 00:12:16]} Rd6 {[%emt 00:01:09] [%clk 00:10:21]} 23. Rc2 {[%emt 00:00:14]
[%clk 00:12:11]} Nd1 {[%emt 00:00:47] [%clk 00:09:44]} 24. Bd2 {[%emt 00:00:09]
[%clk 00:12:12]} Rxd2 {[%emt 00:00:04] [%clk 00:09:51]} 25. Rxd2 {[%emt
00:00:03] [%clk 00:12:18]} Ne3 {[%emt 00:00:01] [%clk 00:09:59]} 26. Rc1 {[%emt
00:00:20] [%clk 00:12:08]} Kf7 {[%emt 00:00:05] [%clk 00:10:05]} 27. Rd7 {[%emt
00:00:20] [%clk 00:11:58]} Rc8 {[%emt 00:00:16] [%clk 00:09:59]} 28. g4 {[%emt
00:00:50] [%clk 00:11:18]} f5 {[%emt 00:00:02] [%clk 00:10:07]} 29. gxf5 {[%emt
00:00:21] [%clk 00:11:07]} Nxf5 {[%emt 00:00:03] [%clk 00:10:14]} 30. Rb7 {[%emt
00:00:30] [%clk 00:10:47]} Nd4 {[%emt 00:01:03] [%clk 00:09:22]} 31. Kf2 {[%emt
00:00:05] [%clk 00:10:51]} Rc6 {[%emt 00:00:03] [%clk 00:09:30]} 32. Rb1 {[%emt
00:00:07] [%clk 00:10:54]} Rh6 {[%emt 00:00:04] [%clk 00:09:35]} 33. Kg2 {[%emt
00:00:19] [%clk 00:10:44]} Nxe2 {[%emt 00:00:22] [%clk 00:09:24]} 34. R1xb6
{[%emt 00:00:02] [%clk 00:10:52]} Rh4 {[%emt 00:00:58] [%clk 00:08:36]} 35. Rb2
{[%emt 00:01:54] [%clk 00:09:08]} Nf4+ {[%emt 00:01:00] [%clk 00:07:45]} 36. Kf1
{[%emt 00:00:08] [%clk 00:09:09]} Rh3 {[%emt 00:00:44] [%clk 00:07:14]} 37. Rf2
{[%emt 00:00:59] [%clk 00:08:19]} Kf6 {[%emt 00:00:50] [%clk 00:06:33]} 38. Rb5
{[%emt 00:00:12] [%clk 00:08:18]} Nd3 {[%emt 00:00:43] [%clk 00:06:00]} 39. Rd2
{[%emt 00:00:01] [%clk 00:08:27]} Rxf3+ {[%emt 00:00:50] [%clk 00:05:20]} 40.
Kg2 {[%emt 00:01:29] [%clk 00:07:06]} g4 {[%emt 00:00:27] [%clk 00:05:05]} 41.
Rd1 {[%emt 00:02:37] [%clk 00:04:38]} e5 {[%emt 00:00:35] [%clk 00:04:41]} 42.
Rxa5 {[%emt 00:00:14] [%clk 00:04:34]} e4 {[%emt 00:00:06] [%clk 00:04:45]} 43.
Ra8 {[%emt 00:00:13] [%clk 00:04:31]} Nf4+ {[%emt 00:00:40] [%clk 00:04:15]} 44.
Kg1 {[%emt 00:00:43] [%clk 00:03:58]} Nh3+ {[%emt 00:00:09] [%clk 00:04:16]} 45.
Kg2 {[%emt 00:00:05] [%clk 00:04:02]} Nf4+ {[%emt 00:00:04] [%clk 00:04:23]} 46.
Kg1 {[%emt 00:00:24] [%clk 00:03:49]} e3 {[%clk 00:04:32]} 47. Re8 {[%emt
00:01:01] [%clk 00:02:57]} h5 {[%emt 00:00:42] [%clk 00:04:00]} 48. Re1 {[%emt
00:00:14] [%clk 00:02:53]} e2 {[%emt 00:00:21] [%clk 00:03:50]} 49. a5 {[%emt
00:00:37] [%clk 00:02:26]} h4 {[%emt 00:00:26] [%clk 00:03:33]} 50. Rf8+ {[%emt
00:01:24] [%clk 00:01:12]} Ke5 {[%emt 00:00:18] [%clk 00:03:25]} 51. Re8+ {[%emt
00:00:52] [%clk 00:00:30]} Kd4 {[%emt 00:00:44] [%clk 00:02:51]} 52. R8xe2
{[%emt 00:00:24] [%clk 00:00:16]} Nxe2+ {[%emt 00:00:02] [%clk 00:02:59]} 53.
Rxe2 {[%clk 00:00:25]} Ra3 {[%emt 00:00:06] [%clk 00:03:04]} 54. Rf2 {[%emt
00:00:15] [%clk 00:00:20]} Ke3 {[%emt 00:00:31] [%clk 00:02:44]} 55. Rf5 {[%emt
00:00:18] [%clk 00:00:12]} Ra1+ {[%emt 00:00:51] [%clk 00:02:02]} 56. Kg2 {[%emt
00:00:10] [%clk 00:00:12]} Ra2+ {[%emt 00:00:06] [%clk 00:02:06]} 57. Kg1 {[%clk
00:00:21]} h3 {[%emt 00:01:28] [%clk 00:00:49]} 58. Re5+ {[%emt 00:00:05] [%clk
00:00:27]} Kd4 {[%emt 00:00:02] [%clk 00:00:56]} 59. Rg5 {[%emt 00:00:02] [%clk
00:00:34]} Rg2+ {[%emt 00:00:05] [%clk 00:01:02]} 60. Kf1 {[%emt 00:00:07] [%clk
00:00:37]} Kxc4 {[%emt 00:00:25] [%clk 00:00:47]} 61. a6 {[%clk 00:00:46]} Kb5
{[%emt 00:00:44] [%clk 00:00:13]} 62. a7 {[%emt 00:00:11] [%clk 00:00:45]} Ra2
{[%emt 00:00:01] [%clk 00:00:21]} 63. Rxg4 {[%emt 00:00:16] [%clk 00:00:40]}
Rxa7 {[%emt 00:00:08] [%clk 00:00:23]} 64. Rh4 {[%emt 00:00:34] [%clk 00:00:16]}
Ra3 {[%emt 00:00:05] [%clk 00:00:27]} 65. Kf2 {[%emt 00:00:16] [%clk 00:00:11]}
c4 {[%emt 00:00:02] [%clk 00:00:35]} 66. Ke2 {[%emt 00:00:07] [%clk 00:00:14]}
Ra2+ {[%emt 00:00:04] [%clk 00:00:41]} 67. Ke3 {[%clk 00:00:23]} Rxh2 {[%emt
00:00:02] [%clk 00:00:49]} 68. Rh8 {[%emt 00:00:07] [%clk 00:00:27]} Ra2 {[%emt
00:00:17] [%clk 00:00:41]} 69. Kd4 {[%emt 00:00:02] [%clk 00:00:36]} Rd2+ {[%emt
00:00:01] [%clk 00:00:49]} 70. Kc3 {[%emt 00:00:02] [%clk 00:00:45]} Rd3+ {[%emt
00:00:01] [%clk 00:00:57]} 71. Kc2 {[%emt 00:00:01] [%clk 00:00:54]} Rg3 {[%emt
00:00:04] [%clk 00:01:03]} 72. Rh7 {[%emt 00:00:08] [%clk 00:00:55]} Kc5 {[%emt
00:00:05] [%clk 00:01:08]} 73. Rh8 {[%emt 00:00:02] [%clk 00:01:04]} Kd4 {[%emt
00:00:55] [%clk 00:00:24]} 74. Rh4+ {[%emt 00:00:27] [%clk 00:00:46]} Kc5 {[%emt
00:00:03] [%clk 00:00:31]} 75. Rh8 {[%emt 00:00:01] [%clk 00:00:55]} Kd4 {[%emt
00:00:01] [%clk 00:00:40]} 76. Rh4+ {[%clk 00:01:04]} Ke3 {[%emt 00:00:06] [%clk
00:00:44]} 77. Rxc4 {[%emt 00:00:57] [%clk 00:00:17]} Kf2 {[%emt 00:00:06] [%clk
00:00:48]} 78. Kd1 {[%emt 00:00:05] [%clk 00:00:22]} h2 {[%emt 00:00:06] [%clk
00:00:51]} 79. Rc2+ {[%emt 00:00:10] [%clk 00:00:22]} Kg1 {[%emt 00:00:03] [%clk
00:00:59]} 0-1

[Site "Europe Echecs"]

[Event "Championnat d'Europe Rapide"]
[Date "2024.12.07"]
[White "Fedoseev, Vladimir"]
[Black "Uruci, Endrit"]
[WhiteElo "2709"]
[BlackElo "2328"]
[Round "5.15"]
[Result "1-0"]
[TimeControl "900+10"]

1. e4 {[%emt 00:00:01] [%clk 00:15:17]} c5 {[%emt 00:00:13] [%clk 00:15:09]} 2.
Nf3 {[%emt 00:00:06] [%clk 00:15:20]} Nc6 {[%emt 00:00:02] [%clk 00:15:16]} 3.
Bb5 {[%emt 00:00:02] [%clk 00:15:28]} g6 {[%emt 00:00:02] [%clk 00:15:23]} 4.
O-O {[%emt 00:00:10] [%clk 00:15:29]} Bg7 {[%emt 00:00:02] [%clk 00:15:31]} 5.
Re1 {[%clk 00:15:38]} Nf6 {[%emt 00:00:04] [%clk 00:15:38]} 6. h3 {[%emt
00:01:06] [%clk 00:14:42]} O-O {[%emt 00:00:09] [%clk 00:15:39]} 7. d3 {[%emt
00:00:09] [%clk 00:14:43]} Na5 {[%emt 00:01:06] [%clk 00:14:43]} 8. e5 {[%emt
00:00:25] [%clk 00:14:28]} Ne8 {[%emt 00:00:14] [%clk 00:14:38]} 9. d4 {[%emt
00:00:07] [%clk 00:14:32]} cxd4 {[%emt 00:00:15] [%clk 00:14:34]} 10. Qxd4
{[%emt 00:00:02] [%clk 00:14:39]} a6 {[%emt 00:00:08] [%clk 00:14:37]} 11. Bd3
{[%emt 00:00:16] [%clk 00:14:33]} d6 {[%emt 00:00:09] [%clk 00:14:37]} 12. Qh4
{[%emt 00:00:11] [%clk 00:14:32]} dxe5 {[%emt 00:01:09] [%clk 00:13:38]} 13.
Nxe5 {[%emt 00:00:07] [%clk 00:14:36]} Nd6 {[%emt 00:00:18] [%clk 00:13:30]} 14.
Bg5 {[%emt 00:01:13] [%clk 00:13:32]} Bf6 {[%emt 00:01:38] [%clk 00:12:02]} 15.
Nf3 {[%emt 00:00:32] [%clk 00:13:11]} Nf5 {[%emt 00:01:08] [%clk 00:11:03]} 16.
Bxf5 {[%emt 00:00:18] [%clk 00:13:03]} Bxf5 {[%emt 00:00:03] [%clk 00:11:11]}
17. Nc3 {[%emt 00:00:13] [%clk 00:13:00]} Bxc3 {[%emt 00:04:32] [%clk 00:06:48]}
18. Bxe7 {[%emt 00:00:17] [%clk 00:12:54]} Qc7 {[%emt 00:01:14] [%clk 00:05:43]}
19. bxc3 {[%emt 00:00:06] [%clk 00:12:59]} Rfe8 {[%emt 00:00:36] [%clk
00:05:17]} 20. g4 {[%emt 00:00:05] [%clk 00:13:04]} Bxc2 {[%emt 00:01:05] [%clk
00:04:21]} 21. Rac1 {[%emt 00:02:22] [%clk 00:10:52]} Bd3 {[%emt 00:00:50] [%clk
00:03:42]} 22. Rcd1 {[%emt 00:00:24] [%clk 00:10:37]} Bc2 {[%emt 00:00:56] [%clk
00:02:56]} 23. Rd2 {[%emt 00:00:02] [%clk 00:10:45]} Qxc3 {[%emt 00:00:20] [%clk
00:02:46]} 24. Re3 {[%emt 00:00:30] [%clk 00:10:25]} Qa1+ {[%emt 00:00:11] [%clk
00:02:45]} 25. Kh2 {[%emt 00:00:02] [%clk 00:10:34]} Rxe7 {[%emt 00:02:11] [%clk
00:00:44]} 26. Qxe7 {[%emt 00:00:26] [%clk 00:10:18]} Ba4 {[%emt 00:00:24] [%clk
00:00:30]} 27. Rd8+ {[%emt 00:00:27] [%clk 00:10:00]} Rxd8 {[%emt 00:00:03]
[%clk 00:00:37]} 28. Qxd8+ {[%emt 00:00:01] [%clk 00:10:09]} Kg7 {[%emt
00:00:01] [%clk 00:00:45]} 29. Qxa5 {[%emt 00:00:02] [%clk 00:10:17]} 1-0

[Site "Europe Echecs"]